bitfinex-derivatives/quotes_ETHF0:USTF0_20250411
["timestamp","ask_amount","ask_price","bid_price","bid_amount"]
[1744414132803,4.01628,1559.3,1559.2,6.32769]
[1744414133802,1.28311,1559.3,1559.2,6.32769]
[1744414134507,4.49083,1559.4,1559.3,1.28311]
[1744414134698,3.2078,1559.4,1559.3,2.44878033]
[1744414135407,1.28303,1559.4,1559.3,2.44878033]
[1744414136407,2.52159601,1559.5,1559.4,1.28303]
[1744414136611,2.85826577,1559.5,1559.4,5.59503]
[1744414136907,4.14120577,1559.5,1559.4,5.59503]
[1744414138010,4.14120577,1559.5,1559.4,4.312]
[1744414138310,4.14120577,1559.5,1559.4,5.59503]
[1744414140600,2.85826577,1559.5,1559.4,8.22233]
[1744414142313,4.14120577,1559.5,1559.4,8.22233]
[1744414142513,2.85826577,1559.5,1559.4,8.22233]
[1744414142811,0.00959601,1559.5,1559.4,13.22233]
[1744414143406,6.31425192,1560.0,1559.8,1.2827]
[1744414143605,8.80275192,1560.0,1559.9,10.33132]
[1744414143810,8.80275192,1560.0,1559.9,12.60862]
[1744414144010,6.31425192,1560.0,1559.9,12.60862]
[1744414144313,6.31425192,1560.0,1559.9,17.60862]
[1744414144511,4.57435192,1560.0,1559.9,17.60862]
[1744414144711,12.66217917,1560.2,1560.1,1.28245]
[1744414144908,11.28514917,1560.2,1560.1,4.49025]
[1744414145113,11.28514917,1560.2,1560.1,9.49025]
[1744414147209,8.10913917,1560.2,1560.1,9.49025]
[1744414147511,5.22799917,1560.2,1560.1,9.49025]
[1744414148109,0.64323917,1560.2,1560.1,9.49025]
[1744414148310,13.39838754,1560.3,1560.2,1.28237]
[1744414148619,13.39838754,1560.3,1560.2,8.29547]
[1744414148914,13.39838754,1560.3,1560.2,13.29547]
[1744414149114,0.00959601,1560.3,1560.2,13.29547]
[1744414149311,6.01e-06,1560.3,1560.2,13.29547]
[1744414152918,6.01e-06,1560.3,1560.2,8.29547]
[1744414169135,6.01e-06,1560.3,1560.2,106.01947]
[1744414170334,2.25670601,1560.3,1560.2,106.01947]
[1744414171132,2.25670601,1560.3,1560.2,109.22727]
[1744414171534,2.25670601,1560.3,1560.2,106.01947]
[1744414171831,2.25670601,1560.3,1560.2,109.22727]
[1744414173929,6.01e-06,1560.3,1560.2,109.22727]
[1744414174129,6.01e-06,1560.3,1560.2,111.46287]
[1744414177245,2.303,1560.6,1560.5,1.28212]
[1744414177434,4.8141,1560.6,1560.5,8.79692]
[1744414178842,2.34229601,1560.7,1560.6,1.28204]
[1744414179046,0.00959601,1560.7,1560.6,3.83014]
[1744414179342,6.01e-06,1560.7,1560.6,3.83014]
[1744414180936,6.01e-06,1560.7,1560.6,1.28204]
[1744414182246,2.74550601,1560.7,1560.6,1.28204]
[1744414182544,2.74550601,1560.7,1560.6,98.99404]
[1744414184338,2.74550601,1560.7,1560.6,102.20184]
[1744414185251,6.01e-06,1560.7,1560.6,102.20184]
[1744414185454,6.01e-06,1560.7,1560.6,109.36554]
[1744414186148,2.2252,1561.0,1560.8,1.28188]
[1744414186337,2.2252,1561.0,1560.9,11.38679]
[1744414188050,2.2252,1561.0,1560.9,8.79659]
[1744414188251,7.2252,1561.0,1560.9,5.58879]
[1744414188638,2.2252,1561.0,1560.9,5.58879]
[1744414189549,4.9327,1561.0,1560.9,5.58879]
[1744414198458,2.2252,1561.0,1560.9,5.58879]
[1744414198664,0.00959601,1561.1,1561.0,1.28171]
[1744414198967,2.62799601,1561.1,1561.0,3.79451]
[1744414201765,2.62799601,1561.1,1561.0,1.28171]
[1744414202167,7.62799601,1561.1,1560.9,4.307]
[1744414202368,2.2414,1561.0,1560.9,5.58879]
[1744414202666,4.9144,1561.0,1560.9,5.58879]
[1744414205360,9.9144,1561.0,1560.9,5.58879]
[1744414205672,4.9144,1561.0,1560.9,5.58879]
[1744414206171,4.9144,1561.0,1560.9,8.33929]
[1744414206567,4.9144,1561.0,1560.9,5.58879]
[1744414208463,4.9144,1561.0,1560.8,0.00959601]
[1744414208464,9.9144,1561.0,1560.8,0.00959601]
[1744414208663,6.44708036,1560.9,1560.8,4.31359601]
[1744414208871,6.44708036,1560.9,1560.8,0.74979601]
[1744414209072,11.44708036,1560.9,1560.8,0.74979601]
[1744414209870,10.16529036,1560.9,1560.8,2.03167601]
[1744414210175,4.8405,1560.9,1560.8,2.03167601]
[1744414211368,6.12229,1560.9,1560.8,2.03167601]
[1744414211569,4.8405,1560.9,1560.8,2.03167601]
[1744414217280,10.92289077,1561.0,1560.9,1.28179]
[1744414217579,16.23839826,1561.0,1560.9,1.28179]
[1744414217782,1.28179,1560.9,1560.8,4.79085601]
[1744414217980,3.96529,1560.9,1560.8,4.79085601]
[1744414218374,2.6835,1560.9,1560.8,4.79085601]
[1744414220182,11.94870077,1561.0,1560.9,1.28179]
[1744414220483,14.92465196,1561.0,1560.9,1.28179]
[1744414220879,14.92465196,1561.0,1560.9,3.90379]
[1744414221075,14.60030077,1561.0,1560.9,3.90379]
[1744414221682,14.92465134,1561.0,1560.9,3.90379]
[1744414221880,4.19190077,1561.0,1560.9,3.90379]
[1744414222084,4.19190077,1561.0,1560.9,6.08379]
[1744414222281,4.19190077,1561.0,1560.9,11.08379]
[1744414222479,11.34999797,1561.0,1560.9,11.08379]
[1744414222785,10.5436934,1561.2,1561.1,1.28163]
[1744414222979,10.5436934,1561.2,1561.1,8.79243]
[1744414223178,10.5436934,1561.2,1561.1,13.80023]
[1744414224482,10.5436934,1561.2,1561.1,18.80023]
[1744414227595,0.00959601,1561.3,1561.2,1.28155]
[1744414227797,0.00959601,1561.3,1561.2,6.14425]
[1744414229591,6.01e-06,1561.3,1561.2,11.14425]
[1744414230799,6.01e-06,1561.3,1561.2,11.78505]
[1744414230999,2.2915,1561.9,1561.8,1.28106]
[1744414231297,2.2915,1561.9,1561.8,5.58406]
[1744414231496,5.0297,1561.9,1561.8,8.23356]
[1744414231893,10.5436934,1562.1,1562.0,1.28089]
[1744414235804,13.2029934,1562.1,1562.0,1.28089]
[1744414235995,2.6593,1562.1,1562.0,1.28089]
[1744414237396,3.21739601,1562.2,1562.0,1.28089]
[1744414237397,0.00959601,1562.2,1562.1,1.28081]
[1744414237706,0.00959601,1562.2,1562.1,5.58181]
[1744414238103,0.00959601,1562.2,1562.1,8.32011]
[1744414238304,0.00959601,1562.2,1562.1,10.60331]
[1744414238905,6.01e-06,1562.2,1562.1,15.60331]
[1744414239206,6.01e-06,1562.2,1562.1,10.60331]
[1744414240818,6.01e-06,1562.2,1562.1,8.32011]
[1744414241013,6.01e-06,1562.2,1562.1,5.58181]
[1744414241715,4.75850601,1562.2,1562.1,5.58181]
[1744414241910,6.01e-06,1562.2,1562.1,8.08531]
[1744414242817,6.01e-06,1562.2,1562.1,23.72531]
[1744414243620,6.01e-06,1562.2,1562.1,8.08531]
[1744414246317,2.56070601,1562.2,1562.1,5.58181]
[1744414246519,6.01e-06,1562.2,1562.1,5.58181]
[1744414246714,6.01e-06,1562.2,1562.1,8.20671]
[1744414247615,2.74080601,1562.2,1562.1,8.20671]
[1744414248422,2.74080601,1562.2,1562.1,5.58181]
[1744414248620,2.74080601,1562.2,1562.1,5.58081]
[1744414252213,6.01e-06,1562.2,1562.1,5.58081]
[1744414252417,2.70350601,1562.2,1562.1,5.58081]
[1744414252819,2.70350601,1562.2,1562.1,8.23031]
[1744414253218,2.70350601,1562.2,1562.1,5.58081]
[1744414254330,2.70350601,1562.2,1562.1,8.15701]
[1744414254531,3.2078,1562.7,1562.6,1.2804]
[1744414254725,3.2078,1562.7,1562.6,5.5784]
[1744414255229,5.8222,1562.7,1562.6,5.5784]
[1744414257127,2.6144,1562.7,1562.6,5.5784]
[1744414257630,2.6144,1562.7,1562.6,8.1132]
[1744414257825,2.6144,1562.7,1562.6,10.3277]
[1744414258631,4.39859601,1562.8,1562.7,1.28032]
[1744414258930,4.39859601,1562.8,1562.7,3.81512]
[1744414260126,0.00959601,1562.8,1562.7,3.81512]
[1744414262724,6.01e-06,1562.8,1562.7,8.81512]
[1744414262931,2.2617,1563.2,1563.1,1.27999]
[1744414263236,2.2617,1563.2,1563.1,5.57699]
[1744414263237,4.8942,1563.2,1563.1,5.57699]
[1744414263827,2.2617,1563.4,1563.3,1.27983]
[1744414264032,4.8942,1563.4,1563.3,5.57683]
[1744414264432,4.8942,1563.4,1563.3,8.15523]
[1744414266035,3.3605,1563.4,1563.3,11.36303]
[1744414266341,0.00639732,1563.5,1563.4,1.27974]
[1744414266640,0.00639732,1563.5,1563.4,8.20994]
[1744414266641,7.32e-06,1563.5,1563.4,8.20994]
[1744414267639,7.32e-06,1563.5,1563.4,13.20994]
[1744414267843,8.3825712,1564.0,1563.9,1.27934]
[1744414268149,8.3825712,1564.0,1563.9,5.57634]
[1744414268343,13.3825712,1564.0,1563.9,5.57634]
[1744414268842,6.6701612,1564.0,1563.9,6.06512215]
[1744414269044,1.8410112,1564.0,1563.9,9.27292215]
[1744414269237,6.77031711,1564.3,1564.2,1.27909]
[1744414269437,1.0074578,1564.4,1564.3,1.29203017]
[1744414269641,3.7447578,1564.4,1564.3,1.29203017]
[1744414269837,4.94787983,1564.4,1564.3,1.27901]
[1744414270337,6.97139844,1564.5,1564.4,1.27893]
[1744414270534,5.33017844,1564.5,1564.4,4.48673]
[1744414270934,3.99130844,1564.5,1564.4,7.23553]
[1744414271135,7.67252844,1564.5,1564.4,1.27893]
[1744414271334,9.82672844,1564.5,1564.4,5.57393]
[1744414271736,4.82672844,1564.5,1564.4,5.57393]
[1744414273042,7.39522844,1564.5,1564.4,5.57393]
[1744414274244,2.67252844,1564.5,1564.4,8.78173]
[1744414274632,5.24102844,1564.5,1564.4,8.78173]
[1744414275437,5.24102844,1564.5,1564.4,5.57393]
[1744414275645,2.5685,1564.5,1564.4,5.57393]
[1744414279750,7.5685,1564.5,1564.4,5.57393]
[1744414282948,2.5685,1564.5,1564.4,5.57393]
[1744414284546,5.7763,1564.5,1564.4,5.57393]
[1744414285952,7.05514,1564.5,1564.4,5.57393]
[1744414286445,7.05514,1564.5,1564.4,4.295]
[1744414288148,12.05514,1564.5,1564.4,4.295]
[1744414288556,1.27901,1564.3,1564.2,101.947]
[1744414288853,1.27901,1564.3,1564.0,1.27919]
[1744414288854,1.27917,1564.1,1564.0,1.27919]
[1744414289043,4.48697,1564.1,1564.0,4.386]
[1744414289247,6.89857,1564.1,1564.0,4.386]
[1744414289455,9.66717,1564.1,1564.0,5.66525]
[1744414290055,9.66717,1564.1,1564.0,4.386]
[1744414290957,9.66717,1564.1,1564.0,5.66525]
[1744414291252,8.388,1564.1,1564.0,5.66525]
[1744414291453,3.2078,1564.1,1564.0,5.66525]
[1744414291758,1.27909,1564.3,1564.2,1.27903]
[1744414291951,1.27909,1564.3,1564.2,5.66503]
[1744414292957,6.09699,1564.3,1564.2,5.66503]
[1744414293157,4.48676,1564.4,1564.3,1.27901]
[1744414293352,7.32246,1564.4,1564.3,3.86141]
[1744414294561,7.32246,1564.4,1564.3,2.5824]
[1744414294858,7.32246,1564.4,1564.3,3.86141]
[1744414295458,3.2078,1564.4,1564.3,3.86141]
[1744414295664,1.27885,1564.5,1564.4,1.27887]
[1744414295856,1.27885,1564.5,1564.4,5.66487]
[1744414296466,1.27885,1564.5,1564.4,4.386]
[1744414296654,7.38579736,1564.5,1564.4,4.386]
[1744414297062,2.575,1564.5,1564.4,5.66493]
[1744414297263,5.85842,1564.6,1564.5,1.27884]
[1744414297463,6.18281685,1564.6,1564.5,3.95444]
[1744414297759,8.75781685,1564.6,1564.5,3.95444]
[1744414298861,7.47899685,1564.6,1564.5,3.95444]
[1744414299066,7.1546,1564.6,1564.5,3.95444]
[1744414300672,4.4865,1564.7,1564.5,2.6756]
[1744414300868,4.4865,1564.7,1564.6,3.90786]
[1744414301175,3.53237141,1564.7,1564.6,3.90786]
[1744414301480,4.81105141,1564.7,1564.6,3.90786]
[1744414301678,4.81105141,1564.7,1564.6,2.6291]
[1744414301974,1.27884,1564.5,1564.4,7.95446]
[1744414303276,3.59114,1564.5,1564.4,7.95446]
[1744414303465,3.59114,1564.5,1564.4,4.386]
[1744414303668,9.11621777,1564.5,1564.4,4.386]
[1744414304176,9.11621777,1564.5,1564.4,5.66493]
[1744414304377,9.11621777,1564.5,1564.4,8.44723]
[1744414305871,12.32401777,1564.5,1564.4,7.1683]
[1744414306068,12.32401777,1564.5,1564.4,4.386]
[1744414306568,11.04517777,1564.5,1564.4,4.386]
[1744414306773,1.60341777,1564.5,1564.4,5.66493]
[1744414306974,1.27882,1564.6,1564.5,1.27884]
[1744414307169,1.60350523,1564.6,1564.5,4.06014]
[1744414308381,3.2078,1564.7,1564.6,1.27876]
[1744414308679,3.53247839,1564.7,1564.6,4.08796]
[1744414309081,4.81115839,1564.7,1564.6,4.08796]
[1744414309675,3.2078,1564.7,1564.6,4.08796]
[1744414310474,4.48648,1564.7,1564.6,2.8092]
[1744414310780,3.2078,1564.7,1564.6,4.08796]
[1744414310980,4.02399,1564.9,1564.7,1.27863]
[1744414311169,4.02399,1564.9,1564.8,7.1952]
[1744414311369,2.3431,1565.1,1564.8,11.6703]
[1744414311577,3.6215,1565.1,1564.9,8.53792]
[1744414311879,3.62153,1565.1,1564.9,8.53792]
[1744414312081,3.62153,1565.1,1565.0,2.6124]
[1744414313469,20.42293829,1565.3,1565.2,1.27827]
[1744414313470,11.8948904,1565.3,1565.2,1.27827]
[1744414313673,7.5330804,1565.3,1565.2,4.38]
[1744414313873,7.5330804,1565.3,1565.2,5.65827]
[1744414313874,6.2548904,1565.3,1565.2,5.65827]
[1744414315481,9.4626904,1565.3,1565.2,5.65827]
[1744414315683,10.7408804,1565.3,1565.2,5.65827]
[1744414315883,6.2548904,1565.3,1565.2,5.65827]
[1744414316083,6.2548904,1565.3,1565.2,8.05847]
[1744414317284,9.4626904,1565.3,1565.2,8.05847]
[1744414319385,3.2078,1565.3,1565.2,8.05847]
[1744414319587,1.27819,1565.3,1565.2,6.7802]
[1744414319784,1.27819,1565.3,1565.2,5.1948]
[1744414320083,1.27819,1565.3,1565.0,1.27839]
[1744414320084,1.27835,1565.1,1565.0,4.379]
[1744414320387,3.2078,1565.3,1565.2,1.27827]
[1744414320586,2.7494,1565.4,1565.3,1.27819]
[1744414320786,2.7494,1565.4,1565.3,5.65719]
[1744414321279,7.7288,1565.5,1565.4,1.27811]
[1744414321481,1.27811,1565.4,1565.3,4.379]
[1744414321777,4.02751,1565.4,1565.3,4.379]
[1744414321981,9.02751,1565.4,1565.3,4.379]
[1744414323288,1.27835,1565.1,1565.0,1.27836]
[1744414323481,4.48615,1565.1,1565.0,4.379]
[1744414323677,11.79875,1565.1,1565.0,4.379]
[1744414324889,16.79875,1565.1,1565.0,4.379]
[1744414326490,1.27868,1564.7,1564.6,5.01799601]
[1744414326682,1.27868,1564.7,1564.6,7.12177584]
[1744414326985,1.27868,1564.7,1564.6,8.40053584]
[1744414327189,9.62985,1564.8,1564.7,1.27868]
[1744414327590,1.27868,1564.7,1564.6,4.379]
[1744414327793,4.10388,1564.7,1564.6,4.38859601]
[1744414327991,6.55828,1564.7,1564.6,4.38859601]
[1744414328188,6.55828,1564.7,1564.6,0.00959601]
[1744414328389,6.55828,1564.7,1564.6,4.38959601]
[1744414328692,6.55828,1564.7,1564.6,5.66835601]
[1744414328892,6.55828,1564.7,1564.6,4.38959601]
[1744414330792,6.55828,1564.7,1564.6,5.66835601]
[1744414330994,6.55828,1564.7,1564.6,7.09279601]
[1744414331195,6.55828,1564.7,1564.6,8.37155601]
[1744414331491,4.4864,1564.8,1564.7,1.27868]
[1744414331690,4.4864,1564.8,1564.7,2.7032]
[1744414331893,4.4864,1564.8,1564.7,3.98188]
[1744414333396,4.4864,1564.8,1564.7,2.7032]
[1744414337003,1.27868,1564.7,1564.6,4.38959601]
[1744414337297,6.51358,1564.7,1564.6,7.22089601]
[1744414339002,6.40431,1564.8,1564.6,7.22089601]
[1744414339003,4.48646,1564.8,1564.6,7.22089601]
[1744414339297,4.48646,1564.8,1564.7,2.621]
[1744414340203,4.48646,1564.8,1564.7,3.89968]
[1744414340499,4.48646,1564.8,1564.7,2.621]
[1744414341099,7.24446,1564.8,1564.7,2.621]
[1744414342796,7.24446,1564.8,1564.6,5.66828601]
[1744414342797,1.27868,1564.7,1564.6,4.38959601]
[1744414342998,4.13128,1564.7,1564.6,7.08139601]
[1744414343199,6.51408,1564.7,1564.6,7.08139601]
[1744414344197,6.51408,1564.7,1564.6,4.38959601]
[1744414346105,6.51408,1564.7,1564.6,5.66835601]
[1744414346407,6.51408,1564.7,1564.6,4.38959601]
[1744414346795,6.51408,1564.7,1564.6,5.66835601]
[1744414347007,6.51408,1564.7,1564.6,4.38959601]
[1744414347203,6.51408,1564.7,1564.6,5.66835601]
[1744414347403,6.51408,1564.7,1564.6,4.38959601]
[1744414351913,6.51408,1564.7,1564.6,7.20179601]
[1744414352517,6.51408,1564.7,1564.6,8.48055601]
[1744414353413,6.51408,1564.7,1564.6,7.20179601]
[1744414354106,7.68299,1564.8,1564.6,7.20179601]
[1744414354312,4.48646,1564.8,1564.7,2.6219]
[1744414354514,1.27868,1564.7,1564.6,4.38959601]
[1744414354715,6.14808,1564.7,1564.6,4.38959601]
[1744414358816,6.14808,1564.7,1564.6,5.66835601]
[1744414359117,6.14808,1564.7,1564.6,8.42755601]
[1744414359417,6.14808,1564.7,1564.6,7.14879601]
[1744414360728,6.14808,1564.7,1564.6,4.38959601]
[1744414364632,1.27884,1564.5,1564.4,4.396]
[1744414364832,4.48664,1564.5,1564.4,4.396]
[1744414365226,7.38684,1564.5,1564.4,4.396]
[1744414366534,4.48664,1564.5,1564.4,4.396]
[1744414366835,4.48664,1564.5,1564.4,7.0879]
[1744414369240,9.53481627,1564.5,1564.4,7.0879]
[1744414369437,12.26971627,1564.5,1564.4,7.0879]
[1744414372837,5.04817627,1564.5,1564.4,13.36683]
[1744414373646,11.30306667,1564.5,1564.4,13.36683]
[1744414376543,4.48649,1564.7,1564.6,1.27876]
[1744414376946,4.48649,1564.7,1564.6,6.34696]
[1744414378040,4.48648,1564.7,1564.6,5.0682]
[1744414378243,4.48648,1564.7,1564.6,2.7811]
[1744414379845,7.36928,1564.7,1564.6,2.7811]
[1744414380948,1.27876,1564.6,1564.5,2.4067]
[1744414381149,8.84506,1564.6,1564.5,8.04854]
[1744414381340,8.84506,1564.6,1564.5,6.7697]
[1744414381847,8.84506,1564.6,1564.5,7.1381]
[1744414383050,8.84506,1564.6,1564.5,8.41694]
[1744414384747,8.84506,1564.6,1564.5,7.1381]
[1744414384949,8.84506,1564.6,1564.5,4.363]
[1744414385451,8.84506,1564.6,1564.5,5.64184]
[1744414385951,8.84506,1564.6,1564.5,4.363]
[1744414387342,7.44064334,1564.7,1564.6,1.27876]
[1744414387545,7.44064334,1564.7,1564.6,4.11886]
[1744414387752,8.71932334,1564.7,1564.6,8.72776]
[1744414390852,4.48648,1564.7,1564.6,8.72776]
[1744414392553,4.48648,1564.7,1564.6,7.449]
[1744414392753,1.27876,1564.6,1564.5,4.363]
[1744414392949,4.13956,1564.6,1564.5,4.363]
[1744414393149,4.13956,1564.6,1564.5,7.2056]
[1744414397559,4.13956,1564.6,1564.5,4.363]
[1744414399060,4.13956,1564.6,1564.5,5.64184]
[1744414399252,9.18773092,1564.6,1564.5,5.64184]
[1744414399454,9.18773092,1564.6,1564.5,4.363]
[1744414399850,9.18773092,1564.6,1564.5,7.1086]
[1744414402858,9.18773092,1564.6,1564.5,8.38744]
[1744414403060,6.32693092,1564.6,1564.5,8.38744]
[1744414403659,5.51160334,1564.6,1564.5,8.38744]
[1744414407564,5.51160334,1564.6,1564.5,7.1086]
[1744414407763,5.51160334,1564.6,1564.5,4.363]
[1744414407764,1.27876,1564.6,1564.5,4.363]
[1744414408062,4.08776,1564.6,1564.5,4.363]
[1744414410962,1.27893,1564.4,1564.3,0.00959601]
[1744414411164,4.48673,1564.4,1564.3,0.00959601]
[1744414411665,7.16443,1564.4,1564.3,0.00959601]
[1744414411965,7.16443,1564.4,1564.0,102.4265]
[1744414411966,1.27917,1564.1,1564.0,97.478]
[1744414412158,4.48697,1564.1,1564.0,101.81]
[1744414412563,4.48697,1564.1,1564.0,104.4651]
[1744414413068,4.48697,1564.1,1564.0,97.478]
[1744414413365,7.39527,1564.1,1564.0,4.332]
[1744414413566,7.39527,1564.1,1564.0,6.9871]
[1744414416861,4.48697,1564.1,1564.0,6.9871]
[1744414417066,4.48697,1564.1,1564.0,8.26635]
[1744414419266,1.27917,1564.1,1564.0,8.26635]
[1744414419568,4.48697,1564.1,1564.0,8.26635]
[1744414422370,1.27917,1564.1,1564.0,8.26635]
[1744414422670,4.23985513,1564.4,1564.3,1.27901]
[1744414422967,4.23985513,1564.4,1564.3,5.61101]
[1744414424272,4.23985513,1564.4,1564.3,10.61101]
[1744414424477,4.23985513,1564.4,1564.3,13.41671]
[1744414426768,3.2078,1564.5,1564.4,1.27893]
[1744414426970,3.2078,1564.5,1564.4,9.23203]
[1744414427268,3.2078,1564.5,1564.4,14.23203]
[1744414427677,3.2078,1564.5,1564.4,9.23203]
[1744414429179,3.2078,1564.5,1564.4,6.71263]
[1744414430576,4.48664,1564.5,1564.4,6.71263]
[1744414430978,9.48664,1564.5,1564.4,4.331]
[1744414431179,17.31194,1564.5,1564.4,4.331]
[1744414432673,12.31194,1564.5,1564.4,4.331]
[1744414436173,12.31194,1564.5,1564.4,5.60993]
[1744414436375,12.31194,1564.5,1564.4,8.53673]
[1744414436966,7.10194,1564.5,1564.4,8.53673]
[1744414437378,11.34179513,1564.5,1564.4,8.53673]
[1744414438178,11.34179513,1564.5,1564.4,11.00383]
[1744414438984,11.34179513,1564.5,1564.4,9.7249]
[1744414439282,14.34389513,1564.5,1564.4,9.7249]
[1744414439494,14.34389513,1564.5,1564.4,7.2578]
[1744414439782,14.34389513,1564.5,1564.4,4.331]
[1744414440170,5.78849513,1564.5,1564.4,4.331]
[1744414440371,6.82957829,1564.7,1564.6,1.27876]
[1744414440577,10.44143973,1564.8,1564.7,1.27868]
[1744414440780,10.44143973,1564.8,1564.7,13.76048]
[1744414440983,10.44143973,1564.8,1564.7,18.76048]
[1744414443979,9.11548973,1564.8,1564.7,18.76048]
[1744414446089,0.00959601,1564.9,1564.8,1.2786]
[1744414446282,3.2078,1565.2,1564.9,3.19955416]
[1744414446483,3.2078,1565.2,1565.1,1.27835]
[1744414446987,3.20437584,1565.2,1565.1,4.21245]
[1744414448588,3.20437584,1565.2,1565.1,6.82975]
[1744414448788,1.28782601,1565.3,1565.2,1.27827]
[1744414448789,0.00959601,1565.3,1565.2,1.27827]
[1744414448979,0.00959601,1565.3,1565.2,7.39637]
[1744414453188,6.01e-06,1565.3,1565.2,12.39637]
[1744414453388,6.01e-06,1565.3,1565.2,13.03557]
[1744414455689,2.6282,1565.7,1565.6,1.27795]
[1744414455890,2.6282,1565.7,1565.6,5.60595]
[1744414456286,5.8273,1565.9,1565.8,1.27778]
[1744414456486,3.8972,1565.9,1565.8,1.27778]
[1744414456693,1.27783,1565.8,1565.7,1.27785]
[1744414456993,6.67873,1565.8,1565.7,1.27785]
[1744414457195,11.67873,1565.8,1565.7,1.27785]
[1744414457686,6.67873,1565.8,1565.7,1.27785]
[1744414458196,5.4009,1565.8,1565.7,1.27785]
[1744414458798,5.4009,1565.8,1565.7,4.12455]
[1744414459700,6.67868,1565.8,1565.7,4.12455]
[1744414459896,6.67868,1565.8,1565.7,1.27785]
[1744414460302,5.4009,1565.8,1565.7,1.27785]
[1744414460598,2.6195,1565.9,1565.8,1.27778]
[1744414460902,7.8344,1565.9,1565.8,1.27778]
[1744414461697,7.8344,1565.9,1565.8,4.33208]
[1744414465099,9.1121,1565.9,1565.8,4.33208]
[1744414465399,9.1121,1565.9,1565.8,1.27778]
[1744414465800,1.27782,1565.8,1565.7,1.27781]
[1744414466002,2.8839,1565.8,1565.7,1.27781]
[1744414467591,2.8839,1565.8,1565.7,4.30411]
[1744414467790,2.4405,1565.9,1565.8,1.27778]
[1744414467994,0.00959601,1566.0,1565.9,1.2777]
[1744414468203,0.00959601,1566.0,1565.9,5.6047]
[1744414468404,0.00959601,1566.0,1565.9,11.0227]
[1744414469303,0.00959601,1566.0,1565.9,8.631]
[1744414475911,1.28721601,1566.0,1565.9,5.6047]
[1744414476112,4.14251601,1566.0,1565.9,5.6047]
[1744414477713,4.14251601,1566.0,1565.9,4.327]
[1744414477913,9.14251601,1566.0,1565.9,4.327]
[1744414478308,4.14251601,1566.0,1565.9,4.327]
[1744414478508,1.2777,1565.9,1565.8,1.28736601]
[1744414478709,9.2129,1565.9,1565.8,5.64436601]
[1744414479215,9.2129,1565.9,1565.8,1.28736601]
[1744414479414,9.2129,1565.9,1565.8,5.64436601]
[1744414479716,9.2129,1565.9,1565.8,1.28736601]
[1744414479911,9.2129,1565.9,1565.8,5.64436601]
[1744414480413,9.2129,1565.9,1565.8,1.28736601]
[1744414480613,14.2129,1565.9,1565.8,0.00959601]
[1744414480812,17.4207,1565.9,1565.8,4.36659601]
[1744414483114,17.4207,1565.9,1565.8,0.00959601]
[1744414483419,17.4207,1565.9,1565.8,4.36659601]
[1744414484322,1.27803,1565.5,1565.4,97.432]
[1744414484618,1.27803,1565.5,1565.4,101.79]
[1744414484810,9.17553,1565.5,1565.4,101.79]
[1744414486111,9.17553,1565.5,1565.4,103.06811]
[1744414486311,9.17553,1565.5,1565.4,101.79]
[1744414488316,9.17553,1565.5,1565.4,103.06811]
[1744414488519,9.17553,1565.5,1565.4,101.79]
[1744414490922,9.17553,1565.5,1565.4,97.432]
[1744414491120,9.17553,1565.5,1565.4,101.79]
[1744414492024,9.17553,1565.5,1565.4,101.83945108]
[1744414492318,7.8975,1565.5,1565.4,103.11756108]
[1744414492522,3.2078,1565.6,1565.5,1.27803]
[1744414492817,3.2078,1565.6,1565.5,4.33283]
[1744414493122,3.2078,1565.6,1565.5,9.33283]
[1744414493416,11.62800069,1566.0,1565.8,1.27778]
[1744414493620,1.17879815,1565.9,1565.8,1.27778]
[1744414493816,1.17879815,1565.9,1565.8,5.63578]
[1744414494215,1.17879815,1565.9,1565.8,5.65410265]
[1744414494415,11.62800069,1566.0,1565.9,1.2777]
[1744414494617,12.90562069,1566.0,1565.9,2.412]
[1744414494819,12.90562069,1566.0,1565.9,3.6897]
[1744414495117,4.49501601,1566.0,1565.9,3.6897]
[1744414495317,4.49501601,1566.0,1565.9,3.70802265]
[1744414497023,1.28721601,1566.0,1565.9,3.70802265]
[1744414497923,0.00959601,1566.0,1565.9,3.70802265]
[1744414498224,0.00959601,1566.0,1565.9,3.75782105]
[1744414500826,1.28721601,1566.0,1565.9,3.75782105]
[1744414501026,0.00959601,1566.0,1565.9,3.75782105]
[1744414501825,0.00959601,1566.0,1565.9,3.80761945]
[1744414503617,0.00959601,1566.0,1565.9,8.80761945]
[1744414503820,6.36505859,1566.4,1566.3,1.27737]
[1744414504026,6.36505859,1566.4,1566.3,5.58637]
[1744414504227,6.36505859,1566.4,1566.3,8.06307]
[1744414505028,6.36505859,1566.4,1566.3,8.23047728]
[1744414506036,7.64234859,1566.4,1566.3,4.50373357]
[1744414506329,12.90634859,1566.4,1566.3,4.50373357]
[1744414506737,12.90634859,1566.4,1566.3,5.78110357]
[1744414507035,11.62905859,1566.4,1566.3,5.78110357]
[1744414507624,6.36505859,1566.4,1566.3,5.78110357]
[1744414508532,16.97200069,1566.5,1566.2,0.00959601]
[1744414508533,1.05531014,1566.3,1566.2,0.00959601]
[1744414508734,7.17761014,1566.3,1566.2,5.59605601]
[1744414509031,5.63233601,1566.5,1566.4,1.27729]
[1744414509032,5.64689601,1566.5,1566.4,1.27729]
[1744414509733,5.64689601,1566.5,1566.4,3.87999]
[1744414510733,6.92410601,1566.5,1566.4,3.87999]
[1744414511926,5.64689601,1566.5,1566.4,3.87999]
[1744414512435,3.21739601,1566.5,1566.4,3.87999]
[1744414512635,4.49460601,1566.5,1566.4,3.87999]
[1744414512831,1.27729,1566.4,1566.3,1.2773]
[1744414513032,4.49467601,1566.5,1566.4,1.27729]
[1744414513232,7.45667601,1566.5,1566.4,1.27729]
[1744414515838,1.27729,1566.4,1566.3,4.0759]
[1744414516037,8.91889,1566.4,1566.3,4.0759]
[1744414517540,7.6416,1566.4,1566.3,4.0759]
[1744414517740,4.49467601,1566.5,1566.4,1.27729]